bitfinex/quotes_ETHUSD_20250508
["timestamp","ask_amount","ask_price","bid_price","bid_amount"]
[1746675113065,5.36080095,1865.4,1865.2,0.7698]
[1746675115881,5.3607857,1865.4,1865.2,0.7698]
[1746675118277,5.35998249,1865.7,1865.2,0.7698]
[1746675118483,5.36100176,1865.4,1865.2,0.7698]
[1746675119199,5.36106792,1865.3,1865.2,0.7698]
[1746675119496,5.3616428,1865.1,1865.0,6.8616]
[1746675119795,5.36146833,1865.2,1865.0,6.8616]
[1746675120566,6.43373549,1865.2,1865.0,6.8616]
[1746675120779,6.69659587,1865.2,1865.0,6.8616]
[1746675120957,6.69659587,1865.2,1865.0,6.08]
[1746675121159,6.69659587,1865.2,1864.8,0.7814]
[1746675121160,5.36214145,1865.0,1864.8,0.7814]
[1746675121492,5.36261918,1864.8,1864.6,6.8657]
[1746675121699,5.36336819,1864.5,1864.4,6.9097]
[1746675121865,5.36322816,1864.6,1864.2,0.8297]
[1746675122069,5.36381448,1864.4,1864.2,0.8297]
[1746675122267,5.36415621,1864.3,1864.0,12.9457]
[1746675122469,5.36349827,1864.5,1864.1,5.36445513]
[1746675122761,5.77217096,1864.5,1864.1,5.36445513]
[1746675122964,5.36342761,1864.5,1864.1,5.41809532]
[1746675123197,0.7727,1864.9,1864.2,0.8016]
[1746675123410,0.29979234,1864.8,1864.2,0.8016]
[1746675123625,5.36296714,1864.7,1864.2,6.91425071]
[1746675123917,5.36326924,1864.6,1864.2,0.8016]
[1746675124068,6.13492375,1864.9,1864.2,0.8016]
[1746675124264,5.36336488,1864.6,1864.2,0.8016]
[1746675124968,5.36334981,1864.6,1864.2,0.8016]
[1746675125166,5.36334981,1864.6,1864.2,6.16581287]
[1746675125365,1.07262233,1864.6,1864.2,0.8016]
[1746675125712,5.75618005,1864.6,1864.2,6.16578817]
[1746675126201,5.7560955,1864.6,1864.2,6.16563787]
[1746675126525,5.7560955,1864.6,1864.2,0.8016]
[1746675126985,5.36346455,1864.5,1864.2,0.8016]
[1746675127173,5.36365673,1864.4,1864.0,18.30531142]
[1746675127377,5.93913196,1864.5,1864.0,18.30529599]
[1746675127604,5.36367634,1864.4,1864.0,18.30533724]
[1746675128189,5.36406911,1864.3,1864.0,6.9047]
[1746675128484,5.36380917,1864.4,1864.0,6.9047]
[1746675129205,5.36399157,1864.3,1864.0,6.9047]
[1746675129380,5.36431893,1864.2,1864.0,0.8247]
[1746675129703,5.36399157,1864.3,1864.0,0.8247]
[1746675130199,6.49410832,1864.4,1864.0,0.8247]
[1746675130609,5.3638121,1864.4,1864.0,0.8247]
[1746675130810,5.36396195,1864.3,1864.0,0.8247]
[1746675132201,5.76833684,1864.6,1864.0,0.8247]
[1746675132202,5.36424385,1864.2,1864.0,0.8247]
[1746675132719,5.36451907,1864.1,1863.9,6.4728999]
[1746675132928,5.36468833,1864.1,1863.9,6.4728999]
[1746675133212,5.76833684,1864.6,1862.9,4.59906727]
[1746675133213,6.15151034,1863.2,1862.9,4.59906727]
[1746675133421,5.36768652,1863.0,1862.9,4.59906727]
[1746675134418,6.44120363,1863.0,1862.9,4.59906727]
[1746675135303,9.71588152,1863.0,1862.9,4.59906727]
[1746675135828,10.01428628,1863.0,1862.9,4.59906727]
[1746675136218,6.73960839,1863.0,1862.9,4.59906727]
[1746675136814,6.44120363,1863.0,1862.9,4.59906727]
[1746675137456,5.76841975,1863.0,1862.9,4.59906727]
[1746675138135,0.40073323,1863.0,1862.9,4.59906727]
[1746675138330,5.36752297,1863.1,1862.6,5.3688371]
[1746675138716,5.36791911,1863.0,1862.6,3.0]
[1746675139229,0.7844,1863.2,1862.6,8.36881389]
[1746675139432,5.36761544,1863.1,1862.6,8.36881389]
[1746675139592,5.3677991,1863.0,1862.6,3.0]
[1746675139798,5.3677991,1863.0,1862.6,8.36881848]
[1746675140028,5.3677991,1863.0,1862.6,9.21106889]
[1746675140328,5.3677991,1863.0,1862.6,9.21108614]
[1746675140508,5.3677991,1863.0,1862.6,3.0]
[1746675140705,5.36811421,1862.9,1862.5,5.36911098]
[1746675140910,5.36767524,1863.1,1862.6,8.36881368]
[1746675141109,5.36775458,1863.0,1862.6,8.36881368]
[1746675141317,5.36775458,1863.0,1862.6,5.36881945]
[1746675141716,5.36775458,1863.0,1862.5,3.05368363]
[1746675141717,5.36775458,1863.0,1862.5,8.36896534]
[1746675142449,6.34990525,1863.1,1862.4,6.19699919]
[1746675142450,5.36830173,1862.8,1862.4,6.19699919]
[1746675142626,5.36798287,1862.9,1862.5,0.55]
[1746675143006,5.36798287,1862.9,1862.5,5.91898552]
[1746675143339,5.3682702,1862.8,1862.5,0.55]
[1746675143637,5.36813683,1862.9,1862.5,0.55]
[1746675143805,5.36840616,1862.8,1862.5,0.55]
[1746675144201,6.76921126,1862.9,1862.5,5.91902553]
[1746675144606,5.36782415,1863.0,1862.6,8.36869696]
[1746675144834,5.36797466,1862.9,1862.6,3.0]
[1746675145144,5.36855102,1862.7,1862.4,0.8277]
[1746675145745,5.36881405,1862.7,1862.4,0.8277]
[1746675146856,5.36889027,1862.6,1862.4,0.8277]
[1746675147648,5.36873617,1862.7,1862.4,0.8277]
[1746675147851,5.36842205,1862.8,1862.4,6.19708211]
[1746675148015,5.36802565,1862.9,1862.4,0.8277]
[1746675148016,5.36812168,1862.9,1862.4,0.8277]
[1746675148348,5.36842429,1862.8,1862.4,6.19708832]
[1746675148841,10.73692259,1862.8,1862.4,6.19708832]
[1746675149044,0.86427996,1862.9,1862.5,5.36912719]
[1746675149244,5.36799822,1862.9,1862.5,5.9189665]
[1746675150150,5.36799822,1862.9,1862.5,3.55]
[1746675150446,5.36814857,1862.9,1862.5,8.91911021]
[1746675150858,5.36829302,1862.8,1862.5,3.0]
[1746675151020,1.07360526,1862.9,1862.5,8.36895813]
[1746675151219,5.36799609,1862.9,1862.5,8.42263343]
[1746675151453,5.36799609,1862.9,1862.6,5.36883626]
[1746675151749,0.791,1863.1,1862.6,5.36882189]
[1746675151924,5.36771058,1863.0,1862.6,5.36861328]
[1746675152528,5.36687225,1863.3,1862.9,5.91783438]
[1746675152752,5.36687225,1863.3,1862.9,0.55]
[1746675153051,5.36687225,1863.3,1862.9,5.91794946]
[1746675153257,5.36724725,1863.2,1862.9,0.55]
[1746675153624,5.36698407,1863.3,1862.9,0.55]
[1746675153825,5.36724564,1863.2,1862.9,0.55]
[1746675154254,5.36692636,1863.3,1862.9,5.91790138]
[1746675154961,5.77124014,1863.4,1862.9,5.91790138]
[1746675155154,6.13584701,1863.6,1863.1,5.36713465]
[1746675155354,5.36654305,1863.4,1863.2,0.7514]
[1746675155653,5.36642856,1863.5,1863.2,0.7514]
[1746675156425,5.97969579,1863.6,1863.2,6.11850855]
[1746675156825,5.36638296,1863.5,1863.2,0.7514]
[1746675157242,10.73291676,1863.5,1863.2,0.7514]
[1746675157554,5.77041361,1863.6,1863.2,0.7514]
[1746675157757,5.77041361,1863.6,1863.2,6.10650659]
[1746675157946,11.136653,1863.6,1863.2,0.7394]
[1746675158132,6.4799496,1863.5,1863.2,0.7394]
[1746675158538,1.1136653,1863.5,1863.2,0.7394]
[1746675158858,5.36634513,1863.5,1863.2,0.7394]
[1746675159058,5.36666758,1863.4,1863.2,0.7394]
[1746675159265,5.36676589,1863.4,1863.1,3.0]
[1746675160161,5.36643399,1863.5,1863.1,3.0]
[1746675160355,0.300071,1863.3,1863.1,8.36736651]
[1746675160562,0.300071,1863.3,1863.1,14.76604373]
[1746675160729,0.300071,1863.3,1863.2,6.13011034]
[1746675161132,0.300071,1863.3,1863.2,0.763]
[1746675161758,0.300071,1863.3,1863.2,6.13011034]
[1746675162269,0.300071,1863.3,1863.2,6.73377725]
[1746675162432,0.300071,1863.3,1863.2,8.24387738]
[1746675162632,0.300071,1863.3,1863.2,10.69387738]
[1746675162854,0.300071,1863.3,1863.2,11.24387738]
[1746675163063,0.300071,1863.3,1863.2,11.19021047]
[1746675164633,0.300071,1863.3,1863.2,17.27101047]
[1746675165355,0.300071,1863.3,1863.2,20.54568836]
[1746675166231,5.76412842,1864.2,1863.8,6.12895268]
[1746675166431,6.47718007,1864.2,1863.8,11.49413803]
[1746675166663,5.36413189,1864.3,1863.8,11.49413803]
[1746675166870,5.36413189,1864.3,1863.9,5.36488561]
[1746675167167,0.3001855,1864.2,1863.9,5.36488561]
[1746675167558,0.3001855,1864.2,1863.8,6.12894587]
[1746675168073,0.3001855,1864.2,1863.9,5.3650662]
[1746675168371,5.36413189,1864.3,1863.9,5.3650662]
[1746675168670,7.11882271,1864.3,1863.9,5.3650662]
[1746675168867,7.11882271,1864.3,1863.8,6.12893028]
[1746675169171,5.36423854,1864.2,1863.8,6.12893028]
[1746675169374,7.11880834,1864.3,1863.9,5.36508427]
[1746675169870,1.75469082,1864.3,1863.9,5.36495399]
[1746675170068,7.11864577,1864.3,1863.9,5.36495399]
[1746675170256,6.14980696,1864.4,1864.0,5.36478862]
[1746675170462,0.7838,1864.6,1864.1,5.41798393]
[1746675170664,5.36342461,1864.5,1864.1,6.18368393]
[1746675170965,5.36376233,1864.4,1864.1,0.7657]
[1746675171142,0.7838,1864.6,1864.3,5.36370266]
[1746675171355,5.36281557,1864.7,1864.3,5.4173862]
[1746675172083,5.36290424,1864.7,1864.3,0.05363777]
[1746675172285,5.36290424,1864.7,1864.3,5.41746276]
[1746675172865,5.36290424,1864.7,1864.3,5.41742096]
[1746675173166,5.36269628,1864.8,1864.3,10.78114699]
[1746675173363,6.51358299,1864.8,1864.4,5.36361938]
[1746675173558,6.14620615,1864.9,1864.5,6.1432291]
[1746675174081,5.36208542,1865.0,1864.5,6.1432291]
[1746675174082,5.36208542,1865.0,1864.5,9.14309008]
[1746675174282,5.36234248,1864.9,1864.5,9.14309008]
[1746675174453,5.36234248,1864.9,1864.5,3.7799]
[1746675175066,5.36234248,1864.9,1864.5,9.14316595]
[1746675175268,5.36234248,1864.9,1864.5,10.64747285]
[1746675175786,5.36256512,1864.8,1864.5,5.2842069]
[1746675176152,5.36256512,1864.8,1864.5,5.23058093]
[1746675176356,5.36299755,1864.7,1864.5,3.7799]
[1746675176768,5.36265705,1864.8,1864.5,3.7799]
[1746675176969,1.16448923,1865.1,1864.3,6.08]
[1746675177187,5.36306966,1864.7,1864.4,3.0]
[1746675177559,5.36303354,1864.7,1864.4,3.0]
[1746675178098,5.36264878,1864.8,1864.4,4.09192216]
[1746675178099,5.36267177,1864.8,1864.4,4.09192216]
[1746675178795,10.7254568,1864.8,1864.4,4.09192216]
[1746675178997,5.36271151,1864.8,1864.4,4.09192216]
[1746675179300,5.36281817,1864.7,1864.4,4.09192216]
[1746675179485,5.36281817,1864.7,1864.4,3.0]
[1746675179874,5.36193794,1865.0,1864.4,3.0]
[1746675180061,5.36297938,1864.7,1864.4,3.0]
[1746675180869,5.3631596,1864.6,1864.4,3.0]
[1746675181170,5.36312916,1864.6,1864.4,3.0]
[1746675182072,5.36336819,1864.5,1864.2,4.42963465]
[1746675182273,5.36321733,1864.6,1864.2,6.190157]
[1746675182596,5.36295879,1864.7,1864.3,5.36384835]
[1746675183160,5.36272156,1864.8,1864.4,3.0]
[1746675183366,5.36272156,1864.8,1864.4,5.36341007]
[1746675183783,5.36272156,1864.8,1864.4,5.41703975]
[1746675184292,5.36272156,1864.8,1864.5,5.3633432]
[1746675184498,5.36272156,1864.8,1864.4,5.41711559]
[1746675185297,5.36223931,1864.9,1864.5,6.69551201]
[1746675185593,5.36203109,1865.0,1864.6,5.41660492]
[1746675185796,5.36225417,1864.9,1864.6,0.05362968]
[1746675186397,5.36225417,1864.9,1864.5,9.69550906]
[1746675186595,5.36210394,1865.0,1864.6,5.36306482]
[1746675186796,5.36210394,1865.0,1864.6,0.05362422]
[1746675186988,10.72428636,1865.0,1864.6,0.05362422]
[1746675187184,5.36209343,1865.0,1864.5,1.3323]
[1746675187530,5.97397486,1865.0,1864.5,0.7823]
[1746675187802,5.36271432,1864.8,1864.5,0.7823]
[1746675188704,5.36280611,1864.7,1864.5,0.7823]
[1746675188999,5.36268105,1864.8,1864.4,5.36362133]
[1746675189301,5.36274359,1864.8,1864.5,0.05362798]
[1746675189499,5.36274359,1864.8,1864.4,5.36346779]
[1746675189794,5.36253592,1864.8,1864.4,5.91361315]
[1746675189994,0.53625359,1864.8,1864.4,0.55]
[1746675190382,5.89886975,1864.8,1864.5,0.05362799]
[1746675191503,0.53625359,1864.8,1864.5,5.41698097]
[1746675191680,5.36239224,1864.9,1864.5,5.41698097]
[1746675191880,5.36239224,1864.9,1864.6,3.0]
[1746675191881,0.30054207,1864.8,1864.6,3.0]
[1746675192601,5.97412208,1865.0,1864.6,8.36298041]
[1746675193000,0.7888,1865.3,1864.8,0.7954]
[1746675193178,5.36128977,1865.3,1864.9,5.41581437]
[1746675193388,0.30049939,1865.2,1864.9,5.41561088]
[1746675193701,0.30049939,1865.2,1865.1,9.7435428]
[1746675193871,0.30049939,1865.2,1865.1,11.30767589]
[1746675194207,0.30049939,1865.2,1865.1,11.25406898]
[1746675194410,0.30049939,1865.2,1865.1,9.7435428]
[1746675194608,5.36040406,1865.6,1865.2,3.0]
[1746675195089,10.72089241,1865.6,1865.2,3.0]
[1746675195296,10.7208576,1865.6,1865.2,3.05360664]
[1746675195484,5.3605025,1865.5,1865.2,3.05360664]
[1746675196411,5.36080099,1865.4,1865.2,3.05360664]
[1746675197013,5.36080099,1865.4,1865.2,3.0]
[1746675197916,5.36106792,1865.3,1865.2,3.0]
[1746675198115,5.36106792,1865.3,1865.1,15.104]
[1746675198327,5.36096763,1865.4,1865.1,9.08]
[1746675198482,0.53609676,1865.3,1865.1,9.8566]
[1746675199609,0.53609676,1865.3,1865.1,3.7766]
[1746675199908,0.53609676,1865.3,1865.1,3.83021021]
[1746675200691,5.89716981,1865.3,1865.1,3.83021021]
[1746675200903,5.89716981,1865.3,1865.1,3.7766]
[1746675201102,0.53609676,1865.3,1865.1,3.7766]
[1746675201399,0.53609676,1865.3,1865.1,3.83021051]
[1746675201712,5.36135535,1865.2,1865.1,3.0]
[1746675202008,5.3621791,1865.0,1864.7,6.7957]
[1746675202177,5.3621791,1865.0,1864.8,3.0]
[1746675202381,5.36234292,1864.9,1864.7,12.8757]
[1746675202802,5.36208594,1865.0,1864.7,12.8757]
[1746675203111,5.36250536,1864.8,1864.7,12.104]
[1746675203693,5.8987559,1864.8,1864.7,6.024]
[1746675203985,5.8987559,1864.8,1864.5,0.7717]
[1746675203986,5.36297317,1864.7,1864.5,0.7717]
[1746675204396,6.19918259,1864.8,1864.5,0.7717]
[1746675204740,6.19918259,1864.8,1864.3,0.7717]
[1746675204741,5.36330005,1864.6,1864.3,0.7717]
[1746675204902,5.36297918,1864.7,1864.3,6.18919457]
[1746675205080,5.36279294,1864.7,1864.3,0.82533211]
[1746675205280,5.95269729,1864.7,1864.3,3.82533211]
[1746675205919,0.30032402,1864.6,1864.3,3.82533211]
[1746675206119,5.66356477,1864.6,1864.3,3.82533211]
[1746675206315,0.30032402,1864.6,1864.3,9.18925712]
[1746675206614,0.30032402,1864.6,1864.3,3.82533211]
[1746675206822,5.9528398,1864.7,1864.3,9.18925179]
[1746675207024,5.36293545,1864.7,1864.3,9.18925179]
[1746675207630,5.36293545,1864.7,1864.3,11.30188151]
[1746675207841,5.36293545,1864.7,1864.3,11.2482494]
[1746675208039,5.36264082,1864.8,1864.4,5.41722741]
[1746675208333,5.36264082,1864.8,1864.4,8.41722741]
[1746675208539,5.36264082,1864.8,1864.4,14.49722741]
[1746675208740,5.36264082,1864.8,1864.4,14.44359695]
[1746675208899,5.36264082,1864.8,1864.5,0.05362719]
[1746675209309,5.36308055,1864.6,1864.4,9.08]
[1746675209848,5.36295786,1864.7,1864.4,9.08]
[1746675210137,5.36310334,1864.6,1864.4,9.08]
[1746675210336,5.36336819,1864.5,1864.4,9.08]
[1746675211004,5.36365586,1864.4,1864.2,6.023]
[1746675211731,5.36394357,1864.3,1864.2,6.023]
[1746675212027,5.36394357,1864.3,1864.2,9.023]
[1746675212234,5.36394357,1864.3,1864.2,3.0]
[1746675212838,0.53633682,1864.5,1864.0,6.08]
[1746675213003,5.36451907,1864.1,1864.0,6.08]
[1746675213334,10.72930242,1864.1,1863.9,0.7748]
[1746675213538,5.36480686,1864.0,1863.8,12.096]
[1746675214140,5.36480686,1864.0,1863.8,3.0]
[1746675214513,5.36464288,1864.1,1863.7,25.44183727]
[1746675214716,5.36438725,1864.2,1863.8,5.96892906]
[1746675215120,10.72890572,1864.2,1863.8,3.60365006]
[1746675215326,5.36438725,1864.2,1863.8,3.60365006]
[1746675216015,5.36480732,1864.0,1863.8,3.55]
[1746675216318,5.36480732,1864.0,1863.8,3.0]
[1746675217251,5.36469781,1864.1,1863.8,3.0]
[1746675217547,5.36469781,1864.1,1863.8,3.05364812]
[1746675217727,5.36492971,1864.0,1863.8,3.0]
[1746675218110,5.36473882,1864.1,1863.9,0.55]
[1746675218649,5.36495216,1864.0,1863.8,3.0]
[1746675219519,10.7300036,1864.0,1863.8,3.0]
[1746675219756,5.36509469,1863.9,1863.8,3.0]
[1746675219957,5.36495216,1864.0,1863.8,3.0]
[1746675220313,5.36468412,1864.1,1863.8,3.0]
[1746675222015,5.3646186,1864.1,1863.8,3.0]
[1746675222221,5.3646186,1864.1,1863.8,3.8251]
[1746675222433,5.3646186,1864.1,1863.8,3.87874725]
[1746675223015,5.3646186,1864.1,1863.8,3.8251]
[1746675225460,5.36503951,1864.0,1863.8,3.0]
[1746675225750,0.7692,1864.2,1863.8,3.0]
[1746675225958,5.36493134,1864.0,1863.8,3.0]
[1746675226358,4.36493134,1864.0,1863.8,3.0]
[1746675227230,5.36509469,1863.9,1863.8,3.0]
[1746675227988,5.36493895,1864.0,1863.8,3.0]
[1746675228871,5.36509469,1863.9,1863.8,3.0]
[1746675229487,5.36502962,1864.0,1863.8,3.0]
[1746675229984,5.36471006,1864.1,1863.8,3.0]
[1746675230286,5.36471006,1864.1,1863.8,4.44456588]
[1746675230665,10.72948449,1864.1,1863.8,4.44456588]
[1746675230862,5.36471006,1864.1,1863.8,4.44456588]
[1746675231986,5.36482469,1864.0,1863.8,4.44456588]
[1746675232165,5.36482469,1864.0,1863.8,3.0]
[1746675232360,5.36554281,1863.8,1863.6,6.839]
[1746675232563,5.36554281,1863.8,1863.0,10.36012001]
[1746675232564,6.018,1863.7,1862.7,6.8907]
[1746675232781,5.36694527,1863.3,1862.8,0.68907]
[1746675232971,5.36715331,1863.2,1862.8,6.0571998]
[1746675233181,5.36704429,1863.3,1862.9,0.05367556]
[1746675233491,5.36744216,1863.1,1862.8,0.68907]
[1746675233651,5.36707836,1863.3,1862.9,0.05367337]
[1746675233859,5.36707147,1863.3,1862.9,3.66475779]
[1746675234052,5.36707147,1863.3,1862.9,3.61108442]
[1746675234382,5.36696706,1863.3,1862.9,3.66475739]
[1746675235197,5.36665276,1863.4,1862.9,6.93943528]
[1746675235359,5.36609727,1863.6,1863.2,3.55]
[1746675235551,5.3655477,1863.8,1863.4,3.7633]
[1746675235898,5.36569541,1863.7,1863.4,3.7633]
[1746675236389,5.36569541,1863.7,1863.4,3.81695943]
[1746675236698,5.36608175,1863.6,1863.3,0.355]
[1746675236897,6.1810795,1863.9,1863.2,4.3772]
[1746675236898,5.36653429,1863.4,1863.2,1.3772]
[1746675237081,5.36653429,1863.4,1863.2,0.55]
[1746675237390,5.36653429,1863.4,1863.0,3.8272]
[1746675237593,5.36675406,1863.4,1863.0,3.8808704]
[1746675237823,5.36697532,1863.3,1863.0,3.8272]
[1746675238027,5.3671265,1863.2,1863.0,0.8272]
[1746675238186,5.3671265,1863.2,1862.9,6.69108442]
[1746675239023,6.16987532,1863.3,1862.9,6.69108442]
[1746675239526,5.36730039,1863.2,1863.0,0.66910844]
[1746675239827,5.36730039,1863.2,1862.9,6.69108442]
[1746675240402,6.16990491,1863.3,1862.9,6.69108442]
[1746675240927,6.16990491,1863.3,1862.9,12.11272225]
[1746675241087,6.16990491,1863.3,1862.9,12.05904925]
[1746675241585,5.16990491,1863.3,1862.9,5.97904925]
[1746675241786,5.16990491,1863.3,1862.9,6.03272226]
[1746675242415,5.16990491,1863.3,1862.9,5.97904925]
[1746675242815,5.16990491,1863.3,1862.9,6.03272226]
[1746675243321,5.36640232,1863.5,1863.1,0.55]
[1746675243620,5.36593623,1863.7,1863.3,8.36662698]
[1746675243785,5.36593623,1863.7,1863.3,3.0]
[1746675244221,10.73188474,1863.7,1863.3,8.36680603]
[1746675244409,5.36609197,1863.6,1863.3,3.0]
[1746675245415,5.36625409,1863.5,1863.3,3.0]
[1746675245624,5.36615035,1863.6,1863.3,3.0]
[1746675246931,5.36585921,1863.7,1863.3,8.4203865]
[1746675247111,5.36585921,1863.7,1863.3,10.40711464]
[1746675247309,0.7739,1863.8,1863.4,0.55]
[1746675247508,19.328,1864.2,1863.5,5.419777]
[1746675247509,6.14116807,1864.0,1863.5,5.419777]
[1746675247821,6.14116807,1864.0,1863.6,5.3659289]
[1746675248318,5.36496807,1864.0,1863.6,5.3659289]
[1746675248520,0.30025454,1863.9,1863.7,7.92114386]
[1746675248724,0.30025454,1863.9,1863.7,2.5556378]
[1746675249019,5.36481783,1864.0,1863.7,4.25577464]
[1746675249322,5.36481783,1864.0,1863.7,5.48113684]
[1746675249692,5.36519681,1863.9,1863.7,5.48113684]
[1746675250103,5.36497632,1864.0,1863.7,5.48113684]
[1746675251324,5.36466836,1864.1,1863.7,10.846771]
[1746675251495,5.36466836,1864.1,1863.8,1.0846771]
[1746675251694,5.36466836,1864.1,1863.7,10.846771]
[1746675252323,5.36466836,1864.1,1863.7,16.21224178]
[1746675252526,5.36442073,1864.2,1863.8,5.36537456]
[1746675252833,0.30028852,1864.1,1863.8,5.36537456]
[1746675253135,5.66481943,1864.1,1863.7,10.84661727]
[1746675253349,5.66481943,1864.1,1863.8,1.08466173]
[1746675253738,5.36453091,1864.1,1863.8,1.08466173]
[1746675254408,5.3649489,1864.0,1863.8,1.08466173]
[1746675255414,5.36462351,1864.1,1863.8,1.08466173]
[1746675255619,1.0724897,1864.8,1864.0,0.8325]
[1746675255829,5.36327232,1864.6,1864.1,8.96792593]
[1746675256003,5.36338285,1864.5,1864.1,8.91428735]
[1746675256541,5.36320761,1864.6,1864.1,8.91428735]
[1746675256717,5.36320761,1864.6,1864.2,5.36413303]
[1746675258819,5.36338411,1864.5,1864.1,14.92328735]
[1746675259024,5.36338411,1864.5,1864.2,1.49232874]
[1746675259705,5.36320722,1864.6,1864.2,6.85655765]
[1746675260940,5.36337775,1864.5,1864.2,1.49232874]
[1746675261542,5.3632546,1864.6,1864.2,6.85654249]
[1746675261713,10.72661352,1864.6,1864.2,6.85654249]
[1746675261912,5.36338076,1864.5,1864.2,1.49232874]
[1746675262642,5.36370803,1864.4,1864.2,1.49232874]
[1746675263036,5.36370803,1864.4,1864.1,15.089]
[1746675263452,5.36308055,1864.6,1864.1,15.089]
[1746675263739,5.36308055,1864.6,1864.2,5.41784863]
[1746675263946,5.36308055,1864.6,1864.3,1.3289]
[1746675264711,5.36298334,1864.7,1864.3,6.74627342]
[1746675264945,5.36298334,1864.7,1864.4,0.67462734]
[1746675265349,5.36298334,1864.7,1864.3,6.69264212]
[1746675265549,5.36298334,1864.7,1864.3,6.74627342]
[1746675267567,5.36263686,1864.8,1864.5,0.55]
[1746675267741,6.01,1865.0,1864.6,5.36280443]
[1746675267942,5.36200501,1865.0,1864.7,3.0]
[1746675268141,5.36152631,1865.2,1864.9,0.55]
[1746675268547,5.36152631,1865.2,1864.9,3.55]
[1746675268745,6.14733595,1865.3,1864.9,9.68650446]
[1746675268947,6.14733595,1865.3,1864.9,4.3243]
[1746675269249,5.36139087,1865.2,1864.9,4.3243]
[1746675269567,5.36139087,1865.2,1864.9,5.90096933]
[1746675270046,5.36148204,1865.2,1864.9,5.90096933]
[1746675270242,10.72308634,1865.2,1864.9,5.90096933]
[1746675270447,5.36148204,1865.2,1864.9,5.90096933]
[1746675270964,5.36193029,1865.0,1864.8,6.08]
[1746675271157,6.19441781,1864.9,1864.8,6.08]
[1746675271547,5.36266009,1864.8,1864.6,6.008]
[1746675272663,5.36279294,1864.7,1864.6,9.008]
[1746675272867,5.36263971,1864.8,1864.6,9.008]
[1746675273172,5.36279294,1864.7,1864.6,9.008]
[1746675273338,5.36268745,1864.8,1864.6,9.008]
[1746675274066,5.36279294,1864.7,1864.6,9.008]
[1746675274267,5.36279294,1864.7,1864.3,1.3063]
[1746675274475,5.36292864,1864.7,1864.3,4.3063]
[1746675274674,5.36292864,1864.7,1864.4,0.43063]
[1746675275571,5.36308227,1864.6,1864.4,0.43063]
[1746675275986,5.36292591,1864.7,1864.4,0.43063]
[1746675276387,5.3617667,1865.1,1864.7,1.3269]
[1746675276558,6.17373796,1865.3,1864.8,8.41588256]
[1746675276881,5.36123796,1865.3,1864.9,5.91220417]
[1746675277081,5.36140964,1865.2,1864.9,0.55]
[1746675277391,5.36164286,1865.1,1864.8,9.08]
[1746675278043,5.3616428,1865.1,1864.8,6.08]
[1746675278245,5.36210887,1865.0,1864.8,6.08]
[1746675279470,5.36221781,1864.9,1864.8,6.08]
[1746675279675,5.36207373,1865.0,1864.7,3.7769]
[1746675280375,5.36239665,1864.9,1864.7,3.0]
[1746675280578,5.36247115,1864.9,1864.7,3.0]
[1746675282272,6.17130397,1865.2,1864.7,3.0]
[1746675282273,5.36250536,1864.8,1864.7,3.0]
[1746675282488,0.8111,1864.9,1864.3,0.782]
[1746675282946,5.362908,1864.7,1864.3,9.14580832]
[1746675283750,10.72597146,1864.7,1864.3,9.14580832]
[1746675284989,0.30062667,1864.6,1864.3,6.14580832]
[1746675285175,0.30062667,1864.6,1864.3,6.1994411]
[1746675285886,0.30062667,1864.6,1864.3,6.14580832]
[1746675286183,5.362908,1864.7,1864.3,6.14580832]
[1746675286678,5.362908,1864.7,1864.3,8.61296192]
[1746675286842,5.362908,1864.7,1864.3,3.24923597]
[1746675287047,5.36310976,1864.6,1864.3,3.19560318]
[1746675287679,5.362908,1864.7,1864.3,8.61316409]
[1746675288357,4.362908,1864.7,1864.3,8.61316409]
[1746675288653,9.72594483,1864.7,1864.3,8.5595313]
[1746675289184,4.362908,1864.7,1864.3,8.6131641]
[1746675289554,4.362908,1864.7,1864.3,8.5595313]
[1746675289779,4.362908,1864.7,1864.3,8.61316406]
[1746675290086,0.30081434,1864.6,1864.3,8.61316406]
[1746675290454,0.30081434,1864.6,1864.3,3.24923594]
[1746675290689,0.30081434,1864.6,1864.3,3.19560318]
[1746675290690,5.66403718,1864.6,1864.3,3.19560318]
[1746675290985,5.36322284,1864.6,1864.3,3.19560318]
[1746675292281,5.36322284,1864.6,1864.3,0.782]
[1746675292582,5.36322284,1864.6,1864.3,6.14592636]
[1746675293187,5.36322284,1864.6,1864.3,0.782]
[1746675293492,5.36293067,1864.7,1864.3,0.782]
[1746675293985,0.53629307,1864.7,1864.2,12.626]
[1746675294191,5.36357697,1864.5,1864.2,12.076]
[1746675294381,6.44851744,1864.6,1864.2,5.996]
[1746675294684,5.36354034,1864.5,1864.2,5.996]
[1746675295286,0.30098449,1864.4,1864.2,5.996]
[1746675295493,0.30098449,1864.4,1864.2,11.36022871]
[1746675295798,5.36297053,1864.7,1864.3,9.60559998]
[1746675296299,5.36234406,1864.9,1864.5,1.77343354]
[1746675296510,5.36234406,1864.9,1864.5,7.13675377]
[1746675296807,5.36234406,1864.9,1864.6,0.7822]
[1746675297111,5.66353584,1864.8,1864.4,12.77572588]
[1746675297281,5.36336819,1864.5,1864.4,6.08]
[1746675297480,5.36354857,1864.5,1864.3,0.55]
[1746675297795,5.36308055,1864.6,1864.2,18.24941951]
[1746675297796,0.30089556,1864.4,1864.2,18.24941951]
[1746675298816,0.30089556,1864.5,1864.2,18.24941951]
[1746675299015,0.30089556,1864.5,1864.2,21.08813704]
[1746675299608,5.36336974,1864.5,1864.2,21.08813704]
[1746675300220,5.36336974,1864.5,1864.2,15.72401753]
[1746675300720,5.66474678,1864.4,1864.2,12.8853]
[1746675300889,5.66474678,1864.4,1864.2,12.076]
[1746675301520,5.66474678,1864.4,1864.2,5.996]
[1746675301718,5.36342254,1864.5,1864.2,5.996]
[1746675301719,0.30107505,1864.3,1864.2,5.996]
[1746675302526,5.3635622,1864.5,1864.2,5.996]
[1746675303541,5.6647511,1864.4,1864.2,5.996]
[1746675304144,0.3009838,1864.4,1864.2,8.36903354]
[1746675304536,0.3009838,1864.4,1864.2,13.7332443]
[1746675304739,6.11773294,1864.7,1864.3,0.8103]
[1746675305050,5.36293294,1864.7,1864.4,1.77343354]
[1746675305962,0.30092709,1864.6,1864.4,1.77343354]
[1746675306271,0.30092709,1864.6,1864.4,2.57354222]
[1746675306441,0.30092709,1864.6,1864.5,0.05363262]
[1746675306757,0.30092709,1864.6,1864.5,6.75050081]
[1746675307127,5.36202436,1865.0,1864.6,5.91299072]
[1746675307327,5.36202436,1865.0,1864.6,7.68642426]
[1746675307530,5.36202436,1865.0,1864.7,0.76864243]